fUSD/lending_fUSD_20250814
["ID","MTS","AMOUNT","RATE_DAILY","PERIOD"]
[379175161,1755178118092,-946.75947247,0.00018831,2]
[379175162,1755178118116,-545.49171473,0.000189,2]
[379175163,1755178118140,-990.21728432,0.00018911,2]
[379175164,1755178118162,-1033.67509618,0.0001899,2]
[379175165,1755178118185,-300.0,0.00018998,2]
[379175166,1755178118208,-1002.90787095,0.00018999,2]
[379175167,1755178118230,-423.32641562,0.00018999,2]
[379175168,1755178118252,-473.0,0.00018999,2]
[379175169,1755178118273,-1167.191,0.00018999,2]
[379175170,1755178118295,-500.0,0.00018999,2]
[379175171,1755178118318,-173.72827549,0.00018999,2]
[379175172,1755178118342,-348.40115173,0.00018999,2]
[379175173,1755178118364,-457.95989037,0.00018999,2]
[379175174,1755178118390,-383.82861096,0.00018999,2]
[379175175,1755178118412,-500.0,0.00018999,2]
[379175176,1755178118436,-909.91172939,0.00019,2]
[379175177,1755178119285,-15000.0,0.00019,2]
[379175178,1755178119512,-15000.0,0.00019,2]
[379175179,1755178120000,-15000.0,0.00019,2]
[379175180,1755178120430,-15000.0,0.00019,2]
[379175184,1755178120842,-15000.0,0.00019,2]
[379175185,1755178121217,-15000.0,0.00019,2]
[379175186,1755178121590,-15000.0,0.00019,2]
[379175187,1755178121913,-15000.0,0.00019,2]
[379175188,1755178123712,-15000.0,0.00019,2]
[379175189,1755178123820,-15000.0,0.00019,2]
[379175190,1755178123962,-15000.0,0.00019,2]
[379175191,1755178124124,-15000.0,0.00019,2]
[379175192,1755178124252,-15000.0,0.00019,2]
[379175193,1755178124657,-15000.0,0.00019,2]
[379175194,1755178124823,-15000.0,0.00019,2]
[379175195,1755178124954,-15000.0,0.00019,2]
[379175196,1755178125278,-15000.0,0.00019,2]
[379175197,1755178125890,-15000.0,0.00019,2]
[379175198,1755178126046,-15000.0,0.00019,2]
[379175199,1755178126365,-15000.0,0.00019,2]
[379175204,1755178127747,-15000.0,0.00019,2]
[379175205,1755178128102,-15000.0,0.00019,2]
[379175206,1755178129100,-15000.0,0.00019,2]
[379175207,1755178129474,-15000.0,0.00019,2]
[379175211,1755178147461,-12318.56743505,0.00019,2]
[379175212,1755178147484,-492.02366065,0.00019,2]
[379175213,1755178147506,-219.91673964,0.00019,2]
[379175214,1755178147528,-508.72564329,0.00019,2]
[379175215,1755178147552,-524.07409811,0.00019,2]
[379175216,1755178147575,-936.69242326,0.00019,2]
[379175219,1755178148078,-15000.0,0.00019,2]
[379175220,1755178152360,-15000.0,0.00019,2]
[379175221,1755178169746,-300.0,0.00018998,2]
[379175222,1755178169768,-14700.0,0.00019,2]
[379175223,1755178169994,-15000.0,0.00019,2]
[379175224,1755178170196,-15000.0,0.00019,2]
[379175225,1755178170265,-15000.0,0.00019,2]
[379175226,1755178182330,-15000.0,0.00019,2]
[379175227,1755178182849,-15000.0,0.00019,2]
[379175228,1755178183278,-15000.0,0.00019,2]
[379175229,1755178183737,-15000.0,0.00019,2]
[379175230,1755178184150,-15000.0,0.00019,2]
[379175231,1755178184651,-15000.0,0.00019,2]
[379175232,1755178185179,-15000.0,0.00019,2]
[379175233,1755178185705,-15000.0,0.00019,2]
[379175234,1755178186372,-15000.0,0.00019,2]
[379175235,1755178186728,-15000.0,0.00019,2]
[379175236,1755178187077,-15000.0,0.00019,2]
[379175237,1755178187478,-15000.0,0.00019,2]
[379175238,1755178187968,-15000.0,0.00019,2]
[379175239,1755178188380,-15000.0,0.00019,2]
[379175240,1755178188728,-15000.0,0.00019,2]
[379175241,1755178189192,-15000.0,0.00019,2]
[379175242,1755178193987,-15000.0,0.00019,2]
[379175243,1755178194587,-15000.0,0.00019,2]
[379175244,1755178195002,-15000.0,0.00019,2]
[379175245,1755178195736,-15000.0,0.00019,2]
[379175246,1755178196059,-13737.63935743,0.00019,2]
[379175247,1755178196082,-502.51485239,0.00019,2]
[379175248,1755178196104,-500.0,0.00019,2]
[379175249,1755178196126,-259.84579018,0.00019,2]
[379175250,1755178197608,-240.4537797,0.00019,2]
[379175251,1755178197630,-500.0,0.00019,2]
[379175252,1755178197653,-500.0,0.00019,2]
[379175253,1755178197674,-504.07549134,0.00019,2]
[379175254,1755178197696,-500.0,0.00019,2]
[379175255,1755178197718,-500.0,0.00019,2]
[379175256,1755178197739,-500.0,0.00019,2]
[379175257,1755178201297,300.0,0.00018999,2]
[379175258,1755178201384,179.43471146,0.000189,2]
[379175259,1755178202122,1200.0,0.00018999,2]
[379175260,1755178203953,850.0,0.00018999,2]
[379175261,1755178204341,500.0,0.00019,2]
[379175262,1755178204619,233.0,0.00018999,2]
[379175263,1755178204756,500.0,0.00019,2]
[379175264,1755178204786,500.0,0.00019,2]
[379175265,1755178204842,500.0,0.00019,2]
[379175266,1755178204984,508.03056474,0.00019,2]
[379175267,1755178205172,500.0,0.00019,2]
[379175268,1755178205220,500.0,0.00019,2]
[379175269,1755178208774,500.0,0.00018999,2]
[379175270,1755178208805,248.66485447,0.00018999,2]
[379175271,1755178208836,487.20858104,0.00018999,2]
[379175272,1755178209361,500.0,0.00019,2]
[379175280,1755178232201,-300.0,0.00019001,2]
[379175281,1755178232210,-239.83,0.00019002,2]
[379175282,1755178232220,-1000.0,0.00019123,2]
[379175283,1755178232230,-201.33069368,0.00019501,2]
[379175284,1755178232240,-500.0,0.00019548,2]
[379175285,1755178232250,-1000.0,0.00019548,2]
[379175286,1755178232259,-1000.0,0.00019548,2]
[379175287,1755178232269,-502.42086915,0.00019548,2]
[379175288,1755178232279,-500.88468451,0.00019548,2]
[379175289,1755178232288,-500.0,0.00019548,2]
[379175290,1755178232298,-1000.0,0.00019548,2]
[379175291,1755178232307,-15085.46,0.00019579,2]
[379175292,1755178232316,-5223.0025132,0.00019598,2]
[379175293,1755178232326,-175.7,0.00019611,2]
[379175294,1755178232336,-500.0,0.00019611,2]
[379175295,1755178232345,-500.0,0.00019611,2]
[379175296,1755178232355,-500.0,0.00019611,2]
[379175297,1755178232364,-500.0,0.00019611,2]
[379175298,1755178232374,-500.0,0.00019611,2]
[379175299,1755178232384,-196.65210793,0.00019611,2]
[379175300,1755178232393,-500.0,0.000199,2]
[379175301,1755178232403,-517.0,0.000199,7]
[379175302,1755178232413,-250.0,0.00019928,2]
[379175303,1755178232422,-300.0,0.00019928,2]
[379175304,1755178232431,-9784.15067453,0.0001995,15]
[379175305,1755178232441,-500.0,0.0002,7]
[379175306,1755178232451,-361.0,0.00020044,2]
[379175307,1755178232461,-1148.4220021,0.00020096,2]
[379175308,1755178232472,-1545.02001298,0.00020096,2]
[379175309,1755178232482,-509.90031358,0.00020096,2]
[379175310,1755178232492,-190.95,0.00020187,2]
[379175311,1755178232501,-900.0,0.000207,2]
[379175312,1755178232510,-420.0,0.00020709,2]
[379175313,1755178232520,-1680.0,0.0002081,2]
[379175314,1755178232529,-250.0,0.000209,2]
[379175315,1755178232538,-300.0,0.000209,2]
[379175316,1755178232548,-742.85956488,0.00020902,2]
[379175317,1755178232557,-504.0,0.00021,2]
[379175318,1755178232566,-515.0,0.00021,2]
[379175319,1755178232577,-372.62114567,0.0002139,2]
[379175320,1755178232586,-1000.0,0.000217,3]
[379175321,1755178232596,-5513.0,0.000218,5]
[379175322,1755178232605,-504.0,0.00021819,2]
[379175323,1755178232614,-844.95,0.00022215,2]
[379175324,1755178232624,-325.0,0.00022418,2]
[379175325,1755178232633,-765.57727638,0.00022466,2]
[379175326,1755178232642,-160.12493605,0.00022473,2]
[379175327,1755178232651,-504.0,0.00022639,3]
[379175328,1755178232661,-150.0,0.00022682,2]
[379175329,1755178232670,-1090.0,0.000227,4]
[379175330,1755178232680,-5000.0,0.00022744,2]
[379175332,1755178232689,-2351.0,0.00022793,2]
[379175334,1755178232699,-191.53,0.00022849,2]
[379175336,1755178232709,-1108.72,0.00023105,2]
[379175338,1755178232719,-156.40253365,0.0002311,2]
[379175340,1755178232733,-160.12493597,0.00023129,2]
[379175342,1755178232744,-203.24057673,0.00023218,2]
[379175344,1755178232754,-666.0,0.00023367,3]
[379175346,1755178232764,-910.21699184,0.00023435,2]
[379175348,1755178232774,-504.0,0.00023458,4]
[379175351,1755178232784,-6203.3,0.00023484,2]
[379175354,1755178232795,-307.39,0.00023508,2]
[379175357,1755178232805,-1000.0,0.00023509,2]
[379175360,1755178232815,-155.43,0.00023526,2]
[379175362,1755178232825,-151.0,0.00023604,2]
[379175364,1755178232836,-151.0,0.00023604,2]
[379175366,1755178232846,-151.0,0.00023604,2]
[379175368,1755178232856,-500.0,0.00023604,2]
[379175370,1755178232866,-500.0,0.00023604,2]
[379175372,1755178232876,-500.0,0.00023604,2]
[379175374,1755178232886,-500.0,0.00023604,2]
[379175376,1755178232896,-500.0,0.00023604,2]
[379175378,1755178232906,-7470.88,0.00023618,2]
[379175380,1755178232915,-545.49171472,0.00023641,2]
[379175382,1755178232925,-500.0,0.00023659,2]
[379175384,1755178232934,-160.12493597,0.00023784,2]
[379175386,1755178232946,-614.01,0.00023822,2]
[379175388,1755178232955,-200.0,0.00023888,2]
[379175390,1755178232965,-6680.0,0.0002391,2]
[379175392,1755178232980,-351.89,0.00023927,2]
[379175394,1755178232990,-638.1,0.00023942,2]
[379175396,1755178233000,-150.0,0.00023959,2]
[379175398,1755178233009,-542.81448154,0.00024,30]
[379175400,1755178233022,-5000.0072299,0.00024,5]
[379175402,1755178233032,-1372.96388915,0.00024,2]
[379175404,1755178233045,-4166.86683348,0.00024,2]
[379175406,1755178233056,-617.65,0.00024,2]
[379175408,1755178233066,-3006.88,0.00024014,2]
[379175410,1755178233076,-200.0,0.00024015,2]
[379175412,1755178233087,-281.09,0.00024038,2]
[379175414,1755178233098,-504.0,0.00024278,5]
[379175416,1755178233107,-160.12493597,0.0002444,2]
[379175418,1755178233118,-7795.00691164,0.00024508,2]
[379175420,1755178233127,-500.0,0.0002451,30]
[379175422,1755178233138,-500.0,0.0002451,30]
[379175424,1755178233149,-500.0,0.0002451,30]
[379175425,1755178233159,-500.0,0.0002451,30]
[379175427,1755178233169,-500.0,0.0002451,30]
[379175429,1755178233178,-500.0,0.0002451,30]
[379175431,1755178233187,-500.0,0.0002451,30]
[379175433,1755178233197,-500.0,0.0002451,30]
[379175435,1755178233207,-500.0,0.0002451,30]
[379175437,1755178233216,-704.82114241,0.0002451,30]
[379175439,1755178233228,-500.0,0.0002451,30]
[379175441,1755178233238,-500.0,0.0002451,30]
[379175443,1755178233248,-500.0,0.0002451,30]
[379175445,1755178233259,-500.0,0.0002451,30]
[379175447,1755178233269,-500.0,0.0002451,30]
[379175449,1755178233278,-500.0,0.0002451,30]
[379175451,1755178233289,-500.0,0.0002451,30]
[379175453,1755178233298,-500.0,0.0002451,30]
[379175455,1755178233307,-500.0,0.0002451,30]
[379175457,1755178233318,-500.0,0.0002451,30]
[379175459,1755178233328,-500.0,0.0002451,30]
[379175461,1755178233338,-900.0,0.0002451,30]
[379175463,1755178233347,-500.0,0.0002451,30]
[379175465,1755178233357,-500.0,0.0002451,30]
[379175467,1755178233367,-500.0,0.0002451,30]
[379175469,1755178233376,-500.0,0.0002451,30]
[379175471,1755178233386,-500.0,0.0002451,30]
[379175473,1755178233396,-500.0,0.0002451,30]
[379175475,1755178233405,-500.0,0.0002451,30]
[379175477,1755178233415,-500.0,0.0002451,30]
[379175479,1755178233425,-500.0,0.0002451,30]
[379175481,1755178233435,-500.0,0.0002451,30]
[379175483,1755178233445,-500.0,0.0002451,30]
[379175485,1755178233455,-924.82121296,0.0002451,30]
[379175487,1755178233465,-500.0,0.0002451,30]
[379175489,1755178233477,-500.0,0.0002451,30]
[379175491,1755178233487,-500.0,0.0002451,30]
[379175493,1755178233497,-500.0,0.0002451,30]
[379175495,1755178233507,-500.0,0.0002451,30]
[379175497,1755178233517,-500.0,0.0002451,30]
[379175499,1755178233527,-500.0,0.0002451,30]
[379175501,1755178233537,-500.0,0.0002451,30]
[379175503,1755178233547,-500.0,0.0002451,30]
[379175505,1755178233556,-500.0,0.0002451,30]
[379175507,1755178233566,-500.0,0.0002451,30]
[379175509,1755178233576,-500.0,0.0002451,30]
[379175511,1755178233586,-500.0,0.0002451,30]
[379175513,1755178233596,-500.0,0.0002451,30]
[379175515,1755178233605,-500.0,0.0002451,30]
[379175517,1755178233614,-500.0,0.0002451,30]
[379175519,1755178233623,-500.0,0.0002451,30]
[379175521,1755178233633,-500.0,0.0002451,30]
[379175523,1755178233642,-500.0,0.0002451,30]
[379175525,1755178233651,-260.04,0.00024514,2]
[379175527,1755178233660,-260.04,0.00024527,2]
[379175529,1755178233670,-260.04,0.00024539,2]
[379175531,1755178233680,-260.04,0.00024552,2]
[379175533,1755178233690,-260.04,0.00024565,2]
[379175535,1755178233700,-260.04,0.00024578,2]
[379175537,1755178233709,-260.04,0.00024591,2]
[379175539,1755178233719,-275.4384,0.00024595,2]
[379175541,1755178233731,-2109.8396,0.00024595,2]
[379175542,1755178233741,-260.04,0.00024604,2]
[379175544,1755178233751,-260.04,0.00024617,2]
[379175546,1755178233761,-260.04,0.0002463,2]
[379175548,1755178233771,-166.66,0.0002464,2]
[379175550,1755178233780,-260.04,0.00024643,2]
[379175552,1755178233790,-260.04,0.00024656,2]
[379175554,1755178233800,-2000.0,0.00024658,15]
[379175556,1755178233811,-260.04,0.00024668,2]
[379175558,1755178233820,-260.04,0.00024681,2]
[379175560,1755178233830,-649.88,0.00024685,30]
[379175562,1755178233842,-260.04,0.00024694,2]
[379175565,1755178233853,-7889.13350568,0.000247,2]
[379175567,1755178233864,-260.04,0.00024707,2]
[379175569,1755178233874,-260.04,0.0002472,2]
[379175571,1755178233884,-260.04,0.00024733,2]
[379175604,1755178234187,-260.04,0.00024746,2]
[379175608,1755178234243,-260.04,0.00024759,2]
[379175610,1755178234253,-1000.0,0.00024783,2]
[379175612,1755178234263,-500.0,0.00024784,30]
[379175614,1755178234273,-500.0,0.00024784,30]
[379175616,1755178234283,-500.0,0.00024784,30]
[379175618,1755178234291,-500.0,0.00024784,30]
[379175620,1755178234301,-500.0,0.00024784,30]
[379175622,1755178234310,-500.0,0.00024784,30]
[379175624,1755178234319,-500.0,0.00024784,30]
[379175626,1755178234331,-500.0,0.00024784,30]
[379175628,1755178234340,-500.0,0.00024784,30]
[379175630,1755178234350,-500.0,0.00024784,30]
[379175632,1755178234360,-500.0,0.00024784,30]
[379175634,1755178234369,-500.0,0.00024784,30]
[379175636,1755178234379,-500.0,0.00024784,30]
[379175638,1755178234389,-500.0,0.00024784,30]
[379175640,1755178234399,-500.0,0.00024784,30]
[379175642,1755178234408,-500.0,0.00024784,30]
[379175644,1755178234419,-500.0,0.00024784,30]
[379175647,1755178234429,-500.0,0.00024784,30]
[379175649,1755178234439,-500.0,0.00024784,30]
[379175651,1755178234449,-500.0,0.00024784,30]
[379175653,1755178234458,-500.0,0.00024784,30]
[379175655,1755178234468,-500.0,0.00024784,30]
[379175656,1755178234481,-500.0,0.00024784,30]
[379175658,1755178234491,-500.0,0.00024784,30]
[379175660,1755178234500,-500.0,0.00024784,30]
[379175662,1755178234510,-500.0,0.00024784,30]
[379175664,1755178234520,-500.0,0.00024784,30]
[379175666,1755178234529,-500.0,0.00024784,30]
[379175668,1755178234539,-500.0,0.00024784,30]
[379175671,1755178234549,-500.0,0.00024784,30]
[379175673,1755178234560,-500.0,0.00024784,30]
[379175674,1755178234569,-500.0,0.00024784,30]
[379175677,1755178234579,-2695.60658347,0.000248,2]
[379175679,1755178234593,-521.35121152,0.000248,2]
[379175681,1755178234604,-52759.03840851,0.000248,2]
[379175684,1755178234624,-847.87620888,0.000248,2]
[379175686,1755178234635,-1609.80050062,0.000248,2]
[379175689,1755178234654,-9163.42591998,0.000248,2]
[379175693,1755178234685,-193975.90860802,0.000248,2]
[379175696,1755178234696,-211.20794419,0.000248,2]
[379175698,1755178234706,-602.5442359,0.00024802,2]
[379175700,1755178234716,-147517.063162,0.000249,2]
[379175702,1755178234728,-500.0,0.00024932,2]
[379175704,1755178234738,-500.0,0.00024932,2]
[379175706,1755178234748,-500.0,0.00024932,2]
[379175708,1755178234757,-281.09,0.0002494,2]
[379175710,1755178234767,-3292.0,0.00024965,2]
[379175712,1755178234776,-8677.47430365,0.0002499,2]
[379175714,1755178234786,-466.7929893,0.00025,60]
[379175716,1755178234795,-5968.40922441,0.00025,2]
[379175717,1755178234805,-7889.13350564,0.00025019,2]
[379175720,1755178234815,-160.12493597,0.00025095,2]
[379175721,1755178234825,-504.0,0.00025097,6]
[379175724,1755178234835,-9562.74870585,0.000251,30]
[379175726,1755178234844,-150.0,0.00025205,2]
[379175728,1755178234855,-8677.47430365,0.00025222,2]
[379175730,1755178234864,-251.43448285,0.0002532,2]
[379175732,1755178234874,-7889.13350564,0.00025338,2]
[379175734,1755178234884,-5185.0151,0.00025406,2]
[379175736,1755178234894,-294.8922947,0.00025435,2]
[379175738,1755178234904,-338.35010656,0.0002555,2]
[379175740,1755178234914,-166.66,0.00025657,2]
[379175742,1755178234924,-7889.13350564,0.00025657,2]
[379175744,1755178234933,-381.80791841,0.00025665,2]
[379175746,1755178234943,-8677.47430365,0.00025725,2]
[379175748,1755178234952,-160.12493597,0.00025751,2]
[379175750,1755178234962,-425.26573026,0.00025779,2]
[379175752,1755178234974,-325.0,0.0002581,2]
[379175754,1755178234986,-281.09,0.00025841,2]
[379175756,1755178234995,-155.43,0.00025878,2]
[379175758,1755178235006,-468.72354211,0.00025894,2]
[379175760,1755178235015,-617.65,0.00025906,7]
[379175762,1755178235025,-504.0,0.00025917,6]
[379175764,1755178235035,-7889.13350564,0.00025976,2]
[379175766,1755178235045,-586.62826952,0.0002599,2]
[379175768,1755178235057,-2047.91343597,0.00026,2]
[379175770,1755178235068,-512.18135396,0.00026009,2]
[379175772,1755178235078,-8677.47430365,0.00026047,2]
[379175774,1755178235087,-967.0,0.000261,2]
[379175776,1755178235097,-178.65,0.00026113,2]
[379175778,1755178235106,-555.63916581,0.00026124,2]
[379175780,1755178235116,-599.09697766,0.00026239,2]
[379175782,1755178235125,-642.55478951,0.00026354,2]
[379175784,1755178235135,-160.12493597,0.00026406,2]
[379175786,1755178235144,-1000.0,0.00026447,2]
[379175787,1755178235154,-686.01260137,0.00026468,2]
[379175789,1755178235163,-3948.38156337,0.000265,2]
[379175791,1755178235173,-26032.422911,0.00026582,2]
[379175793,1755178235182,-729.47041322,0.00026583,2]
[379175795,1755178235193,-150.99,0.00026591,2]
[379175797,1755178235203,-28746.27,0.00026591,2]
[379175799,1755178235213,-339.71,0.00026591,2]
[379175801,1755178235225,-499.99,0.00026591,2]
[379175803,1755178235235,-299.99,0.00026591,12]
[379175805,1755178235246,-9999.99,0.00026591,2]
[379175807,1755178235256,-3749.04,0.00026591,2]
[379175809,1755178235265,-1705.92,0.00026591,20]
[379175811,1755178235275,-210.54,0.00026591,2]
[379175813,1755178235284,-150.99,0.00026591,2]
[379175815,1755178235294,-9999.99,0.00026591,2]
[379175817,1755178235303,-166.66,0.00026674,2]
[379175819,1755178235313,-190.95,0.00026676,2]
[379175821,1755178235322,-772.92822507,0.00026698,2]
[379175823,1755178235332,-1200.0,0.000267,9]
[379175825,1755178235342,-504.0,0.00026736,7]
[379175827,1755178235351,-281.09,0.00026742,2]
[379175829,1755178235361,-2400.0,0.000268,9]
[379175831,1755178235371,-816.38603692,0.00026813,2]
[379175833,1755178235380,-300.9,0.00026865,2]
[379175835,1755178235390,-8677.47430365,0.00026873,2]
[379175836,1755178235400,-5415.86833297,0.00026883,2]
[379175838,1755178235409,-3600.0,0.000269,9]
[379175840,1755178235419,-351.89,0.00026918,120]
[379175842,1755178235429,-859.84384877,0.00026928,2]
[379175843,1755178235438,-17354.9486073,0.0002699,2]
[379175844,1755178235448,-500.0,0.00027,30]
[379175845,1755178235457,-639.48599125,0.00027,30]
[379175846,1755178235467,-500.0,0.00027,30]
[379175847,1755178235478,-500.0,0.00027,30]
[379175848,1755178235488,-500.0,0.00027,30]
[379175849,1755178235498,-500.0,0.00027,30]
[379175850,1755178235508,-500.0,0.00027,30]
[379175851,1755178235518,-500.0,0.00027,30]
[379175852,1755178235527,-500.0,0.00027,30]
[379175853,1755178235536,-500.0,0.00027,30]
[379175854,1755178235546,-500.0,0.00027,30]
[379175855,1755178235556,-500.0,0.00027,30]
[379175856,1755178235566,-500.0,0.00027,30]
[379175857,1755178235575,-714.63916207,0.00027,30]
[379175858,1755178235585,-500.0,0.00027,30]
[379175859,1755178235595,-500.0,0.00027,30]
[379175860,1755178235605,-499.16266562,0.00027,30]
[379175861,1755178235614,-500.0,0.00027,30]
[379175863,1755178235624,-500.0,0.00027,30]
[379175865,1755178235633,-500.0,0.00027,30]
[379175867,1755178235643,-500.0,0.00027,30]
[379175869,1755178235652,-500.0,0.00027,30]
[379175871,1755178235664,-500.0,0.00027,30]
[379175873,1755178235673,-500.0,0.00027,30]
[379175875,1755178235683,-500.0,0.00027,30]
[379175877,1755178235693,-500.0,0.00027,30]
[379175878,1755178235703,-500.0,0.00027,30]
[379175880,1755178235712,-500.0,0.00027,30]
[379175882,1755178235721,-170.53031382,0.00027,30]
[379175883,1755178235732,-500.0,0.00027,30]
[379175884,1755178235742,-500.0,0.00027,30]
[379175885,1755178235753,-572.14850182,0.00027,30]
[379175886,1755178235762,-514.93845484,0.00027,30]
[379175887,1755178235772,-500.0,0.00027,30]
[379175888,1755178235781,-538.61390379,0.00027,30]
[379175889,1755178235791,-162.61202953,0.00027,30]
[379175890,1755178235800,-500.0,0.00027,30]
[379175891,1755178235810,-500.0,0.00027,30]
[379175892,1755178235820,-273.88725199,0.00027,30]
[379175893,1755178235830,-500.0,0.00027,30]
[379175894,1755178235841,-500.0,0.00027,30]
[379175895,1755178235851,-500.0,0.00027,30]
[379175896,1755178235861,-500.0,0.00027,30]
[379175897,1755178235870,-500.0,0.00027,30]
[379175898,1755178235880,-500.0,0.00027,30]
[379175899,1755178235890,-500.0,0.00027,30]
[379175900,1755178235900,-500.0,0.00027,30]
[379175901,1755178235910,-500.0,0.00027,30]
[379175902,1755178235919,-500.0,0.00027,30]
[379175903,1755178235929,-500.0,0.00027,30]
[379175904,1755178235938,-500.0,0.00027,30]
[379175905,1755178235949,-500.0,0.00027,30]
[379175906,1755178235958,-710.91669624,0.00027,30]
[379175907,1755178235974,-500.0,0.00027,30]
[379175908,1755178235985,-500.0,0.00027,30]
[379175909,1755178235995,-500.0,0.00027,30]
[379175910,1755178236005,-500.0,0.00027,30]
[379175911,1755178236015,-500.0,0.00027,30]
[379175912,1755178236025,-500.0,0.00027,30]
[379175913,1755178236034,-500.0,0.00027,30]
[379175914,1755178236044,-500.0,0.00027,30]
[379175915,1755178236053,-500.0,0.00027,30]
[379175916,1755178236064,-500.0,0.00027,30]
[379175917,1755178236074,-500.0,0.00027,30]
[379175918,1755178236083,-500.0,0.00027,30]
[379175919,1755178236092,-500.0,0.00027,30]
[379175920,1755178236102,-500.0,0.00027,30]
[379175921,1755178236111,-500.0,0.00027,30]
[379175922,1755178236121,-500.0,0.00027,30]
[379175923,1755178236131,-500.0,0.00027,30]
[379175924,1755178236140,-500.0,0.00027,30]
[379175925,1755178236150,-500.0,0.00027,30]
[379175926,1755178236159,-500.0,0.00027,30]
[379175927,1755178236168,-500.0,0.00027,30]
[379175928,1755178236178,-500.0,0.00027,30]
[379175929,1755178236188,-948.0,0.0002703,2]
[379175930,1755178236197,-903.30166062,0.00027042,2]
[379175931,1755178236207,-160.12493597,0.00027062,2]
[379175932,1755178236217,-8677.47430365,0.00027148,2]
[379175933,1755178236228,-946.75947247,0.00027157,2]
[379175934,1755178236238,-5415.86833297,0.00027158,2]
[379175935,1755178236247,-171.05983778,0.00027178,23]
[379175936,1755178236257,-159.60380047,0.00027219,2]
[379175937,1755178236266,-990.21728432,0.00027272,2]
[379175938,1755178236275,-967.57461111,0.00027297,2]
[379175939,1755178236285,-211.20794418,0.00027297,2]
[379175940,1755178236294,-1823.56712433,0.000273,2]
[379175941,1755178236303,-4609.0,0.00027344,2]
[379175942,1755178236312,-8677.47430365,0.00027377,2]
[379175943,1755178236321,-22935.28573543,0.00027387,2]
[379175944,1755178236346,-11774.61147917,0.00027387,2]
[379175945,1755178236355,-187.24846935,0.00027387,2]
[379175946,1755178236364,-1033.67509618,0.00027387,2]
[379175947,1755178236373,-155.0,0.00027396,2]
[379175948,1755178236383,-948.04454873,0.00027397,2]
[379175949,1755178236392,-68049.70100301,0.00027397,2]
[379175950,1755178236401,-467.85,0.00027397,2]
[379175951,1755178236410,-400.0,0.00027397,2]
[379175952,1755178236420,-400.0,0.00027397,2]
[379175953,1755178236429,-400.0,0.00027397,2]
[379175954,1755178236438,-1254.44,0.00027397,2]
[379175955,1755178236447,-1501.3,0.00027397,2]
[379175956,1755178236456,-265.76346421,0.00027397,2]
[379175957,1755178236465,-500.0,0.00027397,2]
[379175958,1755178236475,-400.0,0.00027397,2]
[379175959,1755178236484,-3188.41,0.00027397,2]
[379175960,1755178236493,-400.0,0.00027397,2]
[379175961,1755178236503,-1097.15,0.00027397,2]
[379175962,1755178236512,-1678.04,0.00027397,2]
[379175963,1755178236521,-677.68,0.00027397,2]
[379175964,1755178236531,-400.0,0.00027397,2]
[379175965,1755178236540,-400.0,0.00027397,2]